[Event "Aktobe Open 2022"]
[Site "Aktobe"]
[Date "2022.06.19"]
[Round "8.5"]
[White "Moisseyenko, Ilya"]
[Black "Vokhidov, Shamsiddin"]
[Result "0-1"]
[ECO "D35"]
[WhiteElo "2291"]
[BlackElo "2536"]
[Annotator "TA"]
[PlyCount "64"]
[EventDate "2022.06.14"]
[EventType "swiss"]
[EventCountry "KAZ"]
[SourceTitle "playchess.com"]
[Source "ChessBase"]
[SourceQuality "1"]
[TimeControl "5400+30"]

{[%evp 22,64,0,-2,-1,-4,-5,-57,-62,-60,-64,-69,-72,-66,-59,-84,-83,-98,-95,-145,-135,-213,-204,-352,-347,-326,-340,-497,-504,-597,-597,-583,-554,-550,-542,-892,-543,-5920,-5783,-29959,-29958,-11072,-6713,-5406,-4914]} 1. d4 {[%emt 0:03:23]} Nf6 {[%emt 0:00:21]} 2. Nf3 {[%emt 0:00:03]} d5 {[%emt 0:00:30]} 3. c4 {[%emt 0:00:07]} e6 {[%emt 0:00:04]} 4. Nc3 {[%emt 0:01:14]} c6 {[%emt 0:01:01]} 5. cxd5 {[%emt 0:00:51]} exd5 {[%emt 0:00:30]} 6. Bg5 {[%emt 0:00:04]} h6 {[%emt 0:01:46]} 7. Bh4 {[%emt 0:00:11]} Bf5 {[%emt 0:00:14]} 8. e3 {[%emt 0:02:30]} Nbd7 {[%emt 0:00:16]} 9. Bd3 {[%emt 0:00:06]} Bxd3 {[%emt 0:00:06]} 10. Qxd3 {[%emt 0:00:02]} Be7 {[%emt 0:00:09]} 11. O-O {[%emt 0:00:08]} O-O {[%emt 0:00:04]} 12. Rab1 {[%emt 0:00:31]} a5 {[%emt 0:01:02] D35: Queen's Gambit Declined: Exchange Variation.} 13. Rbe1 {[%emt 0:00:35]} Re8 {[%emt 0:01:56] [#]} 14. Ne5 $146 {[%emt 0:01:20]} (14. Qc2 $11) ({Predecessor:} 14. Nd2 Ne4 15. Bxe7 Qxe7 16. Ncxe4 dxe4 17. Qb3 Nf6 18. Rc1 Qb4 19. Rfd1 Nd5 20. a3 Qb6 21. Qxb6 Nxb6 22. Nc4 Nxc4 23. Rxc4 Red8 24. g4 Rd5 25. Rc5 {½-½ (25) Langjahr,M-Wastian,J (1620) Vellmar 2013}) 14... Nxe5 $15 {[%emt 0:06:16] Black is slightly better.} 15. dxe5 {[%emt 0:00:04]} Nd7 {[%emt 0:00:02][%csl LRe5,LRh4]} 16. Bxe7 {[%emt 0:00:06]} Qxe7 {[%emt 0:00:30]} 17. f4 {[%emt 0:00:04]} Rad8 {[%emt 0:14:46]} 18. Kh1 {[%emt 0:11:32]} f6 $36 {[%emt 0:04:13][%mdl 2048] Black is really pushing.} 19. e4 {[%emt 0:07:53]} Nc5 {[%emt 0:07:21]} 20. Qe2 {[%emt 0:35:33]} ({White should try} 20. Qf3) 20... d4 $17 {[%emt 0:01:08]} ({Weaker is} 20... fxe5 21. exd5 e4 22. dxc6 $15) 21. exf6 {[%emt 0:03:04] [#]} (21. Qc4+ $17 {was necessary.} Kh8 22. Na4 Nxa4 23. Qxa4) 21... Qf7 $1 $19 {[%emt 0:02:50]} ({Stronger than} 21... gxf6 22. Qg4+ Kh8 23. Ne2 $17) ({Less strong is} 21... Qxf6 22. Qc4+ Ne6 23. e5 $14) 22. e5 {[%emt 0:06:01]} (22. Nd1 $142 Nxe4 23. Qd3 Nxf6 24. Rxe8+ Qxe8 25. Qd2) 22... dxc3 {[%emt 0:03:09]} 23. bxc3 {[%emt 0:01:58]} gxf6 {[%emt 0:01:38][%cal Bg7f6,Bf6f5,Bf5g4][%mdl 32]} 24. Rf3 {[%emt 0:00:29]} (24. Qe3 {might work better.} Qf8 25. c4) 24... f5 {[%emt 0:01:09]} 25. g4 {[%emt 0:07:20]} fxg4 {[%emt 0:03:56]} 26. Rg1 {[%emt 0:00:12]} Kh7 {[%emt 0:02:03]} 27. Rxg4 {[%emt 0:03:32]} Qf5 {[%emt 0:00:22]} 28. Rfg3 {[%emt 0:05:47]} Ne6 {[%emt 0:01:06] Inhibits Rg7+.} 29. Rg6 {[%emt 0:03:47]} Nxf4 {[%emt 0:03:12]} 30. Rg7+ {[%emt 0:03:08]} Kh8 {[%emt 0:00:01]} 31. Qf3 {[%emt 0:00:42]} Rd3 {[%emt 0:00:11]} 32. R7g6 {[%emt 0:00:56]} Qxg6 {[%emt 0:00:14] Black took control after the opening.  Weighted Error Value: White=1.07/Black=0.21 (precise)} 0-1

[Event "Aktobe Open 2022"]
[Site "Aktobe"]
[Date "2022.06.19"]
[Round "8.6"]
[White "Volkov, Sergey"]
[Black "Aitbayev, Aslan"]
[Result "0-1"]
[ECO "E92"]
[WhiteElo "2510"]
[BlackElo "2420"]
[Annotator "TA"]
[PlyCount "116"]
[EventDate "2022.06.14"]
[EventType "swiss"]
[EventCountry "KAZ"]
[SourceTitle "playchess.com"]
[Source "ChessBase"]
[SourceQuality "1"]
[TimeControl "5400+30"]

{[%evp 24,116,26,0,0,0,0,0,0,0,0,0,0,0,0,0,0,0,0,0,0,-8,-15,-10,0,0,0,0,0,0,0,0,22,0,0,-8,6,6,9,4,4,4,8,4,14,8,5,0,0,0,0,0,0,0,0,0,0,0,0,0,0,0,0,0,0,0,0,-2599,-2599,-2599,-2592,-2314,-1867,-1341,-767,-708,-592,-12841,-12841,-12843,-12843,-12843,-12841,-12840,-12841,-12840,-12839,-12847,-12843,-12841,-12843,-12844,-12833,-12828,-1534]} 1. d4 {[%emt 0:00:04]} Nf6 {[%emt 0:04:30]} 2. c4 {[%emt 0:00:07]} g6 {[%emt 0:00:10]} 3. Nc3 {[%emt 0:00:07]} Bg7 {[%emt 0:00:04]} 4. e4 {[%emt 0:00:10]} d6 {[%emt 0:00:03]} 5. Nf3 {[%emt 0:00:09]} O-O {[%emt 0:00:11]} 6. Be2 {[%emt 0:00:15]} e5 {[%emt 0:00:11]} 7. d5 {[%emt 0:00:14]} a5 {[%emt 0:02:26]} 8. Bg5 {[%emt 0:00:13]} h6 {[%emt 0:00:05]} 9. Bh4 {[%emt 0:00:07]} Na6 {[%emt 0:01:03]} 10. Nd2 {[%emt 0:00:29]} Bd7 {[%emt 0:02:24]} 11. O-O {[%emt 0:02:10]} Nc5 {[%emt 0:04:29]} 12. b3 {[%emt 0:02:17]} Qe8 {[%emt 0:01:06] 12...Nfxe4 deserves study.} 13. a3 {[%emt 0:04:35]} Nfxe4 {[%emt 0:20:20] E92: King's Indian: Classical: 6 Be2 e5: 7 dxe5, 7 Be3 and Petrosian System without 7...Nbd7.} 14. Ndxe4 {[%emt 0:02:59]} Nxe4 {[%emt 0:00:03]} 15. Nxe4 {[%emt 0:00:07]} f5 $1 {[%emt 0:00:03] The position is equal.} 16. Nd2 {[%emt 0:03:58] f3 is the strong threat.} e4 {[%emt 0:03:46]} 17. Ra2 {[%emt 0:11:24]} g5 {[%emt 0:01:27]} 18. Bh5 {[%emt 0:04:21]} Qe7 {[%emt 0:09:39]} 19. Bg3 {[%emt 0:00:35] aiming for h3.} f4 {[%emt 0:00:04]} 20. Nxe4 {[%emt 0:00:52]} Qxe4 {[%emt 0:01:14]} 21. f3 $1 {[%emt 0:00:06]} Qd4+ {[%emt 0:08:49]} 22. Qxd4 {[%emt 0:06:09]} Bxd4+ {[%emt 0:00:04]} 23. Bf2 {[%emt 0:00:04] [#]} Bxf2+ $146 {[%emt 0:03:52]} ({Predecessor:} 23... Be5 24. a4 Be8 25. Bxe8 Raxe8 26. Re1 Bc3 27. Rxe8 Rxe8 28. Kf1 {½-½ (28) Laine,J (2264)-Shapiro,V (2363) ICCF email 2018}) 24. Kxf2 {[%emt 0:00:20]} Be8 {[%emt 0:00:43]} 25. Bg4 {[%emt 0:08:59]} Bf7 {[%emt 0:11:59]} 26. Bd7 {[%emt 0:01:47] Prevents Rfe8.} Rfd8 {[%emt 0:04:50]} 27. Ba4 {[%emt 0:06:01]} Rac8 {[%emt 0:06:15]} 28. g3 {[%emt 0:07:48]} fxg3+ {[%emt 0:00:40]} 29. Kxg3 {[%emt 0:00:07]} c6 {[%emt 0:00:16]} 30. dxc6 {[%emt 0:00:16]} bxc6 {[%emt 0:00:02]} 31. f4 {[%emt 0:00:27]} d5 {[%emt 0:03:20]} 32. c5 {[%emt 0:04:57]} d4 {[%emt 0:05:46]} 33. fxg5 {[%emt 0:00:55]} Rd5 {[%emt 0:00:02]} 34. gxh6 {[%emt 0:00:37]} Rxc5 {[%emt 0:07:34]} 35. Rf6 {[%emt 0:05:47]} Rc3+ {[%emt 0:00:00]} 36. Kf4 {[%emt 0:03:17]} Bxb3 {[%emt 0:00:00]} 37. Bxb3+ {[%emt 0:01:20]} Rxb3 $11 {[%emt 0:00:00][%mdl 4096] Endgame KRR-KRR} 38. Rg2+ {[%emt 0:01:34]} Kh8 $1 {[%emt 0:00:00]} 39. Rg7 {[%emt 0:00:11] Threatening mate with Rff7.} Rh3 {[%emt 0:00:00]} 40. Rgg6 {[%emt 0:08:29]} c5 {[%emt 0:00:00] Threatens to win with ...d3.} 41. Rc6 {[%emt 0:00:04]} Rxc6 {[%emt 0:01:16]} 42. Rxc6 {[%emt 0:00:05] KR-KR} Rh5 {[%emt 0:00:43] Hoping for ...Rd5.} 43. Ke4 {[%emt 0:00:49] Prevents Rd5.} Kh7 {[%emt 0:00:27]} 44. a4 {[%emt 0:00:38]} Rh4+ {[%emt 0:00:33]} 45. Kd5 $2 {[%emt 0:01:52][%mdl 8192]} (45. Kd3 $11) 45... d3 $19 {[%emt 0:00:32] Black is clearly winning.} 46. Kxc5 {[%emt 0:04:10] [#]} Rd4 $3 {[%emt 0:00:11][%mdl 576] Promotion} 47. Kxd4 {[%emt 0:00:24] KR-KPP} d2 {[%emt 0:00:03]} 48. Kc5 {[%emt 0:00:15]} d1=Q {[%emt 0:00:04] KQ-KR} 49. Kb5 {[%emt 0:00:07]} Qd2 {[%emt 0:00:58]} 50. Rc4 {[%emt 0:00:08]} Qd3 {[%emt 0:00:55]} 51. h4 {[%emt 0:00:20]} Kxh6 {[%emt 0:00:12]} 52. Kc5 {[%emt 0:00:04]} Kg6 {[%emt 0:00:18]} 53. Rd4 {[%emt 0:00:14]} Qc3+ {[%emt 0:00:36]} 54. Kd5 {[%emt 0:00:01]} Kf5 {[%emt 0:00:30]} 55. Rc4 {[%emt 0:00:09]} Qb3 {[%emt 0:01:13]} 56. Kd4 {[%emt 0:01:22]} Ke6 {[%emt 0:00:22]} 57. h5 {[%emt 0:01:30]} Kd6 {[%emt 0:00:23]} 58. h6 {[%emt 0:00:17]} Qh3 {[%emt 0:00:14] Weighted Error Value: White=0.34/Black=0.04 (flawless)} 0-1

[Event "Aktobe Open 2022"]
[Site "Aktobe"]
[Date "2022.06.19"]
[Round "8.7"]
[White "Utegaliyev, Azamat"]
[Black "Kekelidze, Mikheil"]
[Result "1-0"]
[ECO "C68"]
[WhiteElo "2463"]
[BlackElo "2388"]
[Annotator "TA"]
[PlyCount "43"]
[EventDate "2022.06.14"]
[EventType "swiss"]
[EventCountry "KAZ"]
[SourceTitle "playchess.com"]
[Source "ChessBase"]
[SourceQuality "1"]
[TimeControl "5400+30"]

{[%evp 9,43,21,11,29,28,17,56,29,40,27,151,39,221,216,220,216,224,223,197,167,409,395,395,368,462,449,456,430,431,462,451,444,501,400,1057,1039]} 1. e4 {[%emt 0:15:00]} e5 {[%emt 0:00:10]} 2. Nf3 {[%emt 0:02:34]} Nc6 {[%emt 0:00:06]} 3. Bb5 {[%emt 0:00:25]} a6 {[%emt 0:00:07]} 4. Bxc6 {[%emt 0:01:00]} dxc6 {[%emt 0:00:07]} 5. O-O {[%emt 0:00:10]} Qf6 {[%emt 0:01:20]} 6. d4 {[%emt 0:01:04] C68: Ruy Lopez: Exchange Variation, sidelines.} exd4 {[%emt 0:00:05]} 7. Bg5 {[%emt 0:00:18][%mdl 64] Deflection} Qg6 {[%emt 0:00:30]} 8. Qxd4 {[%emt 0:00:42][%csl Gg5][%cal Rd4d8] White is slightly better.} Bd6 {[%emt 0:06:43]} 9. Nbd2 {[%emt 0:01:12]} f6 {[%emt 0:05:23]} (9... Ne7 $11) 10. Bh4 {[%emt 0:00:40] [#] White is more active.} (10. e5 $16 c5 11. Qc4 $1 fxe5 12. Rfe1) 10... Be6 $146 {[%emt 0:03:14] [#]} ({Don't do} 10... Bh3 11. Bg3 Bxg3 12. fxg3 $16 (12. hxg3 Be6 $16)) (10... Nh6 $14) ({Predecessor:} 10... Bg4 11. Bg3 Rd8 12. Qa7 Bc8 13. Rfe1 Ne7 14. Nc4 O-O 15. Nxd6 cxd6 16. Rad1 d5 {0-1 (32) Oleksienko,M (2621)-Landaw,J (2362) Chess.com INT 2014}) 11. e5 $1 $18 {[%emt 0:04:14]} ({Less strong is} 11. Bg3 Ne7 $14) 11... fxe5 {[%emt 0:22:06]} 12. Nxe5 {[%emt 0:00:06]} Qf5 {[%emt 0:05:50] [#]} 13. Rfe1 {[%emt 0:30:41] g4 is the strong threat.} c5 {[%emt 0:06:01]} 14. Qe4 {[%emt 0:00:29]} Kf8 $2 {[%emt 0:13:49]} (14... Nh6) 15. Qxb7 {[%emt 0:02:18]} Re8 {[%emt 0:00:05]} 16. Nec4 {[%emt 0:01:45] Pair of Knights!} Nf6 {[%emt 0:05:16]} 17. Nxd6 {[%emt 0:01:05]} cxd6 {[%emt 0:00:01]} 18. Qxa6 {[%emt 0:00:07]} Qd5 {[%emt 0:02:19]} 19. Bxf6 {[%emt 0:00:57]} gxf6 {[%emt 0:00:02]} 20. Ne4 {[%emt 0:00:12]} Rg8 {[%emt 0:06:24]} 21. Qxd6+ {[%emt 0:00:57]} Kf7 {[%emt 0:00:01]} (21... Qxd6 $142 22. Nxd6 Re7) 22. Qxd5 {[%emt 0:00:14] White took control after the opening.  Weighted Error Value: White=0.21 (precise) /Black=0.62} 1-0

[Event "Aktobe Open 2022"]
[Site "Aktobe"]
[Date "2022.06.19"]
[Round "8.8"]
[White "Urazayev, Arystanbek"]
[Black "Kuderinov, Kirill"]
[Result "1/2-1/2"]
[ECO "E21"]
[WhiteElo "2445"]
[BlackElo "2409"]
[Annotator "RC"]
[PlyCount "153"]
[EventDate "2022.06.14"]
[EventType "swiss"]
[EventCountry "KAZ"]
[SourceTitle "playchess.com"]
[Source "ChessBase"]
[SourceQuality "1"]
[TimeControl "5400+30"]

1. d4 {[%emt 0:00:02]} Nf6 {[%emt 0:01:25]} 2. c4 {[%emt 0:00:06]} e6 {[%emt 0:00:12]} 3. Nc3 {[%emt 0:00:10]} Bb4 {[%emt 0:00:26]} 4. Nf3 {[%emt 0:01:11]} O-O {[%emt 0:05:53]} 5. Bg5 {[%emt 0:00:19]} h6 {[%emt 0:05:35]} 6. Bh4 {[%emt 0:00:17]} c5 {[%emt 0:05:27]} 7. Rc1 {[%emt 0:04:44]} cxd4 {[%emt 0:00:41]} 8. Nxd4 {[%emt 0:00:07]} Nc6 {[%emt 0:00:17]} 9. Ndb5 {[%emt 0:04:18]} d5 {[%emt 0:03:51]} 10. cxd5 {[%emt 0:05:05]} exd5 {[%emt 0:00:26]} 11. e3 {[%emt 0:04:03]} d4 {[%emt 0:03:25]} 12. Nxd4 {[%emt 0:08:09]} Nxd4 {[%emt 0:00:06]} 13. Qxd4 {[%emt 0:08:56]} Qxd4 {[%emt 0:00:13]} 14. exd4 {[%emt 0:00:08]} Re8+ {[%emt 0:00:54]} 15. Be2 {[%emt 0:06:53]} Bf5 {[%emt 0:05:17]} 16. Bxf6 {[%emt 0:09:49]} gxf6 {[%emt 0:00:07]} 17. a3 {[%emt 0:08:50]} Ba5 {[%emt 0:00:50]} 18. b4 {[%emt 0:10:35]} Bb6 {[%emt 0:00:19]} 19. Nd5 {[%emt 0:10:58]} Bxd4 {[%emt 0:11:09]} 20. Rd1 {[%emt 0:00:12]} Be5 {[%emt 0:12:52]} 21. f4 {[%emt 0:05:30]} Bb2 {[%emt 0:01:07]} 22. Rd2 {[%emt 0:00:06]} Bxa3 {[%emt 0:10:01]} 23. Ra2 {[%emt 0:01:23]} Bd3 {[%emt 0:07:58]} 24. Nxf6+ {[%emt 0:03:11]} Kf8 {[%emt 0:00:21]} 25. Nxe8 {[%emt 0:01:25]} Bxb4+ {[%emt 0:00:16]} 26. Kf2 {[%emt 0:03:03]} Bc5+ {[%emt 0:00:32]} 27. Kf1 {[%emt 0:01:20]} Bxe2+ {[%emt 0:00:39]} 28. Rxe2 {[%emt 0:00:01]} Rxe8 {[%emt 0:00:06]} 29. Rxe8+ {[%emt 0:00:05]} Kxe8 {[%emt 0:00:02]} 30. Ke2 {[%emt 0:00:05]} a5 {[%emt 0:01:13]} 31. Kd3 {[%emt 0:01:00]} a4 {[%emt 0:03:02]} 32. Kc4 {[%emt 0:00:08]} b6 {[%emt 0:00:04]} 33. Rd1 {[%emt 0:01:00]} Ke7 {[%emt 0:00:45]} 34. Rd5 {[%emt 0:01:06]} Kf6 {[%emt 0:00:11]} 35. g4 {[%emt 0:00:33]} Kg6 {[%emt 0:01:32]} 36. h4 {[%emt 0:00:27]} Kg7 {[%emt 0:00:08]} 37. Rd3 {[%emt 0:02:40]} Kg6 {[%emt 0:03:23]} 38. h5+ {[%emt 0:00:16]} Kf6 {[%emt 0:00:47]} 39. Rd5 {[%emt 0:00:32]} Kg7 {[%emt 0:00:27]} 40. g5 {[%emt 0:00:42]} hxg5 {[%emt 0:00:34]} 41. fxg5 {[%emt 0:00:05]} Kg8 {[%emt 0:05:55]} 42. Rd8+ {[%emt 0:00:22]} Kg7 {[%emt 0:03:30]} 43. Rd7 {[%emt 0:00:06]} Kg8 {[%emt 0:00:22]} 44. Kd5 {[%emt 0:00:56]} Be3 {[%emt 0:01:44]} 45. g6 {[%emt 0:00:56]} fxg6 {[%emt 0:00:03]} 46. hxg6 {[%emt 0:00:03]} a3 {[%emt 0:01:48]} 47. Ra7 {[%emt 0:00:32]} Bc1 {[%emt 0:00:59]} 48. Kc4 {[%emt 0:01:18]} Bb2 {[%emt 0:01:34]} 49. Kb3 {[%emt 0:00:09]} Kf8 {[%emt 0:00:18]} 50. Rb7 {[%emt 0:00:33]} Kg8 {[%emt 0:00:22]} 51. Rf7 {[%emt 0:00:08]} Kh8 {[%emt 0:00:27]} 52. Rb7 {[%emt 0:00:51]} Kg8 {[%emt 0:00:05]} 53. Rxb6 {[%emt 0:00:23]} Kg7 {[%emt 0:00:05]} 54. Ra6 {[%emt 0:00:09]} Bf6 {[%emt 0:00:31]} 55. Kc4 {[%emt 0:00:07]} Kxg6 {[%emt 0:00:25]} 56. Kd5 {[%emt 0:00:15]} Kf5 {[%emt 0:01:01]} 57. Rxa3 {[%emt 0:00:05]} Bb2 {[%emt 0:00:14]} 58. Rf3+ {[%emt 0:00:06]} Kg5 {[%emt 0:00:11]} 59. Ke4 {[%emt 0:00:10]} Kg6 {[%emt 0:00:14]} 60. Rf5 {[%emt 0:00:14]} Bc3 {[%emt 0:01:14]} 61. Kf4 {[%emt 0:00:21]} Bb2 {[%emt 0:00:32]} 62. Kg4 {[%emt 0:01:19]} Bc3 {[%emt 0:00:19]} 63. Rc5 {[%emt 0:00:31]} Bb2 {[%emt 0:00:06]} 64. Rc6+ {[%emt 0:00:13]} Kf7 {[%emt 0:00:05]} 65. Kf5 {[%emt 0:00:09]} Ke7 {[%emt 0:00:05]} 66. Ke4 {[%emt 0:00:50]} Ba1 {[%emt 0:00:15]} 67. Kd5 {[%emt 0:00:08]} Bb2 {[%emt 0:00:10]} 68. Re6+ {[%emt 0:00:08]} Kf7 {[%emt 0:00:05]} 69. Kd6 {[%emt 0:00:07]} Ba3+ {[%emt 0:00:13]} 70. Kd7 {[%emt 0:00:06]} Bb2 {[%emt 0:00:10]} 71. Re2 {[%emt 0:01:29]} Bc3 {[%emt 0:00:05]} 72. Re6 {[%emt 0:00:45]} Bb2 {[%emt 0:00:36]} 73. Kd6 {[%emt 0:00:07]} Bc3 {[%emt 0:00:11]} 74. Kd5 {[%emt 0:00:10]} Bb2 {[%emt 0:00:13]} 75. Rb6 {[%emt 0:00:15]} Bc3 {[%emt 0:00:07]} 76. Rb3 {[%emt 0:01:05]} Ba1 {[%emt 0:00:12]} 77. Rf3+ {[%emt 0:01:43]} 1/2-1/2

[Event "Aktobe Open 2022"]
[Site "Aktobe"]
[Date "2022.06.19"]
[Round "8.9"]
[White "Amangeldy, Ernur"]
[Black "Nogerbek, Kazybek"]
[Result "0-1"]
[ECO "E01"]
[WhiteElo "1682"]
[BlackElo "2424"]
[Annotator "TA"]
[PlyCount "140"]
[EventDate "2022.06.14"]
[EventType "swiss"]
[EventCountry "KAZ"]
[SourceTitle "playchess.com"]
[Source "ChessBase"]
[SourceQuality "1"]
[TimeControl "5400+30"]

{[%evp 9,140,2,28,30,29,9,20,8,17,9,20,18,52,50,53,68,74,75,85,87,92,12,19,17,20,5,31,-52,-39,-49,-33,-29,-37,-40,-32,-125,-132,-162,-151,-215,-211,-489,-139,-148,-107,-109,-94,-113,-64,-58,-56,-57,-58,-59,-58,-60,-52,-74,-75,-75,-60,-91,-100,-93,-89,-118,-115,-120,-108,-118,-105,-105,-102,-105,-101,-123,-118,-123,-110,-166,-158,-154,-77,-78,-32,-138,-136,-140,-140,-199,-204,-203,-200,-283,-296,-333,-318,-333,-337,-315,-228,-324,-323,-514,-498,-462,-432,-470,-435,-538,-491,-514,-600,-530,-504,-519,-460,-909,-877,-818,-604,-569,-538,-850,-600,-850,-836,-811,-796,-819,-645,-731,-632]} 1. d4 {[%emt 0:00:03]} Nf6 {[%emt 0:06:04]} 2. c4 {[%emt 0:00:06]} e6 {[%emt 0:00:09]} 3. g3 {[%emt 0:00:06]} d5 {[%emt 0:01:06]} 4. Nf3 {[%emt 0:00:08]} Bb4+ {[%emt 0:00:33]} 5. Bd2 {[%emt 0:00:09]} Bd6 {[%emt 0:00:07]} 6. Bg2 {[%emt 0:00:26] E01: Catalan: Early deviations.} O-O {[%emt 0:00:10]} 7. Qc2 {[%emt 0:02:42]} Nbd7 {[%emt 0:00:22]} 8. O-O {[%emt 0:01:21] The position is equal.} c6 {[%emt 0:00:19]} 9. Rd1 {[%emt 0:06:46]} h6 {[%emt 0:01:59]} 10. b3 {[%emt 0:02:56] [#]} b5 $146 {[%emt 0:06:47]} ({Predecessor:} 10... Ne4 11. Nc3 f5 12. Ne1 h5 13. Nd3 g5 14. Be1 h4 15. e3 hxg3 16. hxg3 Qf6 {1-0 (33) Firouzja,A (2682)-David,A (2553) Le Blanc Mesnil 2019}) 11. c5 {[%emt 0:04:53]} Bc7 {[%emt 0:00:36]} 12. a4 {[%emt 0:01:22]} bxa4 {[%emt 0:00:23]} 13. Rxa4 {[%emt 0:00:11]} e5 {[%emt 0:00:06]} 14. dxe5 $1 {[%emt 0:04:25]} Nxe5 {[%emt 0:00:16]} 15. Bf4 {[%emt 0:12:38]} (15. Nd4 $16) 15... Nxf3+ $11 {[%emt 0:01:58]} 16. Bxf3 {[%emt 0:01:13]} Bxf4 {[%emt 0:00:07]} 17. Rxf4 {[%emt 0:00:03]} Qe7 {[%emt 0:00:10]} 18. Rd2 {[%emt 0:15:26]} (18. Ra4 $14) 18... Rb8 {[%emt 0:02:04]} 19. Nc3 {[%emt 0:08:53]} Be6 {[%emt 0:09:00]} 20. b4 {[%emt 0:04:45]} a5 {[%emt 0:03:38]} 21. bxa5 {[%emt 0:02:27]} Nd7 {[%emt 0:00:40][%cal Bf6d7,Bd7e5,Be5g6][%mdl 32]} 22. e4 {[%emt 0:08:09]} (22. Na2 $15) 22... d4 $1 $17 {[%emt 0:02:41][%mdl 64] Decoy} ({Reject} 22... g5 $6 23. exd5 $1 gxf4 24. dxe6 Qxe6 25. Rd6 $11) 23. Rxd4 {[%emt 0:00:40]} Qxc5 {[%emt 0:01:35]} ({Inferior is} 23... g5 24. Rf5 $15) 24. e5 {[%emt 0:02:53]} (24. Qd2 $17) 24... Nxe5 $19 {[%emt 0:01:14]} 25. Qd2 $2 {[%emt 0:01:15]} (25. Rde4 {keeps fighting.}) 25... Qxa5 $2 {[%emt 0:05:39]} (25... g5 $1 $19 {[%cal Rg5f4] has better winning chances.} 26. Rf6 Qe7) 26. Be2 $17 {[%emt 0:00:36]} Qa1+ {[%emt 0:01:17]} 27. Kg2 {[%emt 0:02:27]} Ng6 {[%emt 0:00:22] Black is much more active.} 28. Rf3 {[%emt 0:00:46]} Rfe8 {[%emt 0:02:38]} (28... Qa7 $17 29. Re3 c5) 29. Ra4 $15 {[%emt 0:02:38]} Qb2 {[%emt 0:00:06]} 30. Qxb2 {[%emt 0:00:33]} Rxb2 {[%emt 0:00:10]} 31. Re3 {[%emt 0:00:17]} Ne7 {[%emt 0:01:51] Strongly threatening ...Nd5.} 32. Bc4 {[%emt 0:06:09]} Nf5 {[%emt 0:00:46]} 33. Re2 {[%emt 0:00:29]} Rxe2 {[%emt 0:00:40]} 34. Bxe2 {[%emt 0:00:15]} Rd8 {[%emt 0:01:41]} 35. Ra5 {[%emt 0:04:27]} Nd4 {[%emt 0:00:19]} 36. Rc5 {[%emt 0:00:16]} Kf8 {[%emt 0:00:37]} 37. f3 {[%emt 0:00:39]} Ke7 {[%emt 0:00:14]} 38. Kf2 {[%emt 0:00:06]} Rb8 {[%emt 0:01:07]} 39. Ke3 {[%emt 0:00:53]} Rb4 {[%emt 0:00:38]} 40. Bd3 {[%emt 0:00:24]} Kd6 {[%emt 0:01:21]} 41. Ne4+ {[%emt 0:01:38]} Kc7 {[%emt 0:00:09]} 42. Rc1 {[%emt 0:00:42]} Nf5+ {[%emt 0:00:12]} 43. Kd2 {[%emt 0:01:17]} Kb6 {[%emt 0:02:20]} 44. Ra1 {[%emt 0:01:57] [#]} (44. f4 $17 {might work better.}) 44... Rb2+ $1 $19 {[%emt 0:00:20]} 45. Kc3 {[%emt 0:00:10]} Rb3+ {[%emt 0:00:08]} (45... Rxh2 $142 {aiming for ...Ra2.} 46. g4 Nh4) 46. Kd2 $17 {[%emt 0:00:06]} Nd4 {[%emt 0:00:19]} ({Black should play} 46... g6 $17 {White must now prevent ...Rb2+.} 47. g4 Nh4 48. Ra6+ Kc7) 47. f4 {[%emt 0:01:25] [#] Black converts the advantage convincingly.} ({Better is} 47. Ra6+ $15 Kc7 48. Nc5) 47... Nb5 $1 {[%emt 0:02:25]} 48. Rc1 {[%emt 0:01:24]} Bd5 {[%emt 0:01:07]} 49. Nc5 {[%emt 0:00:15]} (49. Nc3 $17 Nxc3 50. Rxc3) 49... Rb2+ $19 {[%emt 0:00:08]} 50. Ke3 {[%emt 0:00:06] Threatens to win with Na4+.} Rxh2 {[%emt 0:00:24]} 51. Na4+ {[%emt 0:00:25]} (51. Nd7+ {is a better defense.} Kc7 52. Bxb5 Kxd7 53. Bf1) 51... Ka5 {[%emt 0:00:33]} 52. Nc5 {[%emt 0:00:09]} Rg2 {[%emt 0:01:02]} 53. Bxb5 {[%emt 0:00:20]} Kxb5 {[%emt 0:01:00][%mdl 4096] Endgame KRB-KRN} ({Wrong is} 53... cxb5 $2 54. Kd4 Rd2+ 55. Kc3 $19) 54. Kd4 {[%emt 0:00:01]} Rb2 {[%emt 0:01:56] Against Rb1} 55. Nd7 {[%emt 0:00:27]} (55. Nd3 $142 Rb3 56. f5) 55... f6 {[%emt 0:00:24]} 56. f5 {[%emt 0:01:09]} (56. Nc5 {was worth a try.}) 56... Rb4+ {[%emt 0:00:37] Black is clearly winning.} 57. Ke3 {[%emt 0:00:05]} Rb3+ {[%emt 0:00:11]} 58. Kd4 {[%emt 0:00:04]} h5 {[%emt 0:00:30][%cal Bh6h5,Bh5h4,Bh4h3][%mdl 32]} 59. Rc5+ {[%emt 0:00:38]} Kb4 {[%emt 0:00:18]} 60. Rc1 {[%emt 0:00:21]} Rxg3 {[%emt 0:00:29]} 61. Rb1+ {[%emt 0:00:04]} Ka3 {[%emt 0:00:49]} 62. Nc5 {[%emt 0:00:20]} h4 {[%emt 0:01:03]} 63. Nd3 {[%emt 0:00:36]} (63. Rb8 $142) 63... h3 {[%emt 0:02:19]} 64. Ra1+ {[%emt 0:00:34]} Ba2 {[%emt 0:00:16]} 65. Rh1 {[%emt 0:00:16]} Rg4+ {[%emt 0:00:08]} 66. Kc3 {[%emt 0:00:07]} Rc4+ {[%emt 0:00:11]} 67. Kd2 {[%emt 0:00:06]} Rh4 {[%emt 0:00:07]} 68. Rh2 {[%emt 0:00:43]} Bd5 {[%emt 0:00:08]} 69. Kc3 {[%emt 0:00:32]} Rc4+ {[%emt 0:00:08]} 70. Kd2 {[%emt 0:00:03]} Bg2 {[%emt 0:00:07] Weighted Error Value: White=0.31/Black=0.20 (precise)} 0-1